bitfinex/quotes_ETHUSD_20230904
["timestamp","ask_amount","ask_price","bid_price","bid_amount"]
[1693855427538,3.03590313,1628.9,1628.6,6.14009]
[1693855428235,0.88760949,1628.9,1628.6,6.14009]
[1693855428458,0.88760949,1628.9,1628.5,0.64358911]
[1693855428459,0.92086684,1628.8,1628.5,0.64358911]
[1693855428657,0.92086684,1628.8,1628.5,3.64358911]
[1693855428856,4.06341622,1628.8,1628.5,3.64358911]
[1693855429059,2.1486893,1628.6,1628.5,3.64358911]
[1693855431266,2.1208,1628.7,1628.5,22.06523911]
[1693855431468,2.1486893,1628.6,1628.5,22.06523911]
[1693855432039,2.1486893,1628.6,1628.5,21.42165]
[1693855432249,2.1486893,1628.6,1628.5,22.06523911]
[1693855432874,2.1486893,1628.6,1628.5,21.42165]
[1693855433256,2.1486893,1628.6,1628.5,22.06523911]
[1693855434846,2.1486893,1628.6,1628.5,21.42165]
[1693855435072,3.03773707,1628.6,1628.5,21.42165]
[1693855435445,3.03773707,1628.6,1628.5,18.42165]
[1693855436777,3.03773707,1628.6,1628.5,24.56227]
[1693855440782,3.03773707,1628.6,1628.5,30.93847282]
[1693855440986,3.03773707,1628.6,1628.5,31.90385648]
[1693855441284,2.1208,1628.7,1628.5,31.90385648]
[1693855441683,2.1208,1628.7,1628.5,30.93847282]
[1693855441987,2.1208,1628.7,1628.5,31.90385648]
[1693855442202,2.1208,1628.7,1628.6,3.19038565]
[1693855442385,2.1208,1628.7,1628.6,21.61110565]
[1693855443381,3.00997414,1628.7,1628.6,21.61110565]
[1693855443883,3.00997414,1628.7,1628.6,18.42072]
[1693855451773,0.88917414,1628.7,1628.6,18.42072]
[1693855457112,0.88917414,1628.7,1628.6,19.06430911]
[1693855460010,0.88917414,1628.7,1628.6,20.02969277]
[1693855460904,0.88917414,1628.7,1628.6,19.38610366]
[1693855461100,3.15547414,1628.7,1628.6,19.8777545]
[1693855464383,3.12565461,1628.7,1628.6,19.8777545]
[1693855469226,0.85935461,1628.7,1628.6,19.8777545]
[1693855469522,2.95175461,1628.7,1628.6,19.8777545]
[1693855482315,0.85935461,1628.7,1628.6,28.0443501]
[1693855482645,5.04842927,1628.8,1628.6,27.07896644]
[1693855482848,5.04842927,1628.8,1628.7,1.61138346]
[1693855483012,5.04842927,1628.8,1628.7,0.96683008]
[1693855483421,5.04842927,1628.8,1628.7,1.6114046]
[1693855483628,5.04842927,1628.8,1628.7,3.22184318]
[1693855483826,5.93068086,1628.8,1628.7,3.22184318]
[1693855485438,5.93068086,1628.8,1628.7,21.64142318]
[1693855488355,5.93068086,1628.8,1628.7,24.70843744]
[1693855488523,5.04842927,1628.8,1628.7,25.99561566]
[1693855488728,5.04842927,1628.8,1628.7,25.02878558]
[1693855489135,2.9,1628.8,1628.7,25.02878558]
[1693855493246,2.1592,1629.1,1628.7,25.02878558]
[1693855493567,2.1592,1629.1,1628.9,0.64412379]
[1693855494550,2.1592,1629.1,1628.9,3.71113805]
[1693855497175,2.1092,1629.1,1628.9,3.71113805]
[1693855497338,2.1092,1629.1,1629.0,24.55492]
[1693855497670,2.3577,1629.2,1629.0,27.62193426]
[1693855497851,2.3577,1629.2,1629.1,1.02877855]
[1693855498052,2.3577,1629.2,1629.1,18.41505]
[1693855498779,3.23787415,1629.2,1629.1,18.41505]
[1693855503958,5.40857415,1629.2,1629.1,18.41505]
[1693855509791,3.05087415,1629.2,1629.1,18.41505]
[1693855530090,5.19877228,1629.2,1629.1,18.41505]
[1693855539644,5.19877228,1629.2,1628.9,1.61030947]
[1693855539822,2.0857,1629.1,1628.9,1.61030947]
[1693855540019,2.0857,1629.1,1629.0,0.64412379]
[1693855540225,2.86703703,1629.1,1629.0,0.64412379]
[1693855544251,2.86703703,1629.1,1629.0,19.06031379]
[1693855562986,3.59689055,1629.1,1629.0,18.41619]
[1693855563140,3.59689055,1629.1,1629.0,6.13873]
[1693855564343,3.59689055,1629.1,1628.8,1.14540707]
[1693855564746,2.2291,1629.0,1628.8,1.14540707]
[1693855564961,3.01038159,1629.0,1628.8,1.14540707]
[1693855565161,3.3844051,1629.0,1628.8,1.14540707]
[1693855566380,5.53256689,1629.0,1628.9,18.41733]
[1693855566580,5.53256689,1629.0,1628.9,12.27822]
[1693855566785,5.53256689,1629.0,1628.9,18.41733]
[1693855571482,5.53256689,1629.0,1628.9,12.27822]
[1693855597095,2.92944338,1629.0,1628.9,12.27822]
[1693855600631,2.92944338,1629.0,1628.9,18.41733]
[1693855618237,2.92944338,1629.0,1628.9,19.06145379]
[1693855622774,2.92944338,1629.0,1628.9,18.41733]
[1693855625370,2.92944338,1629.0,1628.9,12.27822]
[1693855627890,2.92944338,1629.0,1628.9,18.41733]
[1693855628176,2.92944338,1629.0,1628.9,20.32347538]
[1693855635348,2.92944338,1629.0,1628.9,18.41733]
[1693855654480,2.92944338,1629.0,1628.9,12.27822]
[1693855655203,5.04364338,1629.0,1628.9,12.27822]
[1693855656515,5.04364338,1629.0,1628.9,6.13911]
[1693855660815,5.04364338,1629.0,1628.9,12.27822]
[1693855661010,6.16184572,1629.0,1628.9,12.27822]
[1693855661182,6.16184572,1629.0,1628.9,6.13911]
[1693855661383,12.30057572,1629.0,1628.9,6.13911]
[1693855661614,6.16184572,1629.0,1628.9,6.13911]
[1693855666021,4.01368393,1629.0,1628.9,6.13911]
[1693855666224,4.01368393,1629.0,1628.8,6.13918]
[1693855666521,0.40136839,1628.9,1628.8,6.13918]
[1693855666719,0.40136839,1628.9,1628.8,6.13929]
[1693855666921,3.50756081,1628.9,1628.8,6.13929]
[1693855667122,5.6558733,1628.9,1628.8,6.13929]
[1693855680789,3.50756081,1628.9,1628.8,6.13929]
[1693855681017,3.50756081,1628.9,1628.7,6.13967]
[1693855681320,3.50756081,1628.9,1628.7,6.08967]
[1693855681625,2.14840821,1628.8,1628.7,6.08967]
[1693855682129,3.08967506,1628.8,1628.7,6.08967]
[1693855683309,3.08967506,1628.8,1628.7,12.22953]
[1693855691738,3.08967506,1628.8,1628.7,12.87365379]
[1693855702336,3.08967506,1628.8,1628.7,13.83983947]
[1693855706024,3.61505257,1628.8,1628.7,13.83983947]
[1693855706223,3.61505257,1628.8,1628.7,12.87365379]
[1693855707149,3.08967506,1628.8,1628.7,12.87365379]
[1693855717061,3.08967506,1628.8,1628.7,19.01351379]
[1693855721034,3.08967506,1628.8,1628.7,19.97969947]
[1693855721658,3.08967506,1628.8,1628.7,19.01351379]
[1693855723772,3.08967506,1628.8,1628.7,19.97969947]
[1693855724472,3.08967506,1628.8,1628.7,19.01351379]
[1693855724775,3.08967506,1628.8,1628.7,19.97969947]
[1693855738170,3.08967506,1628.8,1628.7,19.01351379]
[1693855741391,5.17317506,1628.8,1628.7,19.01351379]
[1693855761142,5.91602257,1628.8,1628.7,0.64412379]
[1693855761301,18.19498257,1628.8,1628.5,1.61030947]
[1693855761497,18.19498257,1628.8,1628.5,0.64412379]
[1693855761704,2.0739,1628.7,1628.5,0.64412379]
[1693855761898,8.21384,1628.7,1628.5,0.64412379]
[1693855762232,1.76061388,1628.6,1628.5,0.64412379]
[1693855763032,3.83451388,1628.6,1628.5,0.64412379]
[1693855763181,3.83451388,1628.6,1628.4,1.61030947]
[1693855763377,3.83451388,1628.6,1628.4,6.78476379]
[1693855763927,5.98320318,1628.6,1628.4,7.75094947]
[1693855764129,0.59832032,1628.5,1628.4,7.75094947]
[1693855764319,0.59832032,1628.5,1628.4,6.78476379]
[1693855764641,2.79862032,1628.5,1628.4,6.78476379]
[1693855768197,2.2003,1628.5,1628.4,6.78476379]
[1693855768825,3.04085488,1628.5,1628.4,6.78476379]
[1693855769053,3.04085488,1628.5,1628.4,12.92575379]
[1693855772260,3.04085488,1628.5,1628.4,12.28163]
[1693855779306,3.04085488,1628.5,1628.4,6.14064]
[1693855779471,3.6419477,1628.5,1628.4,6.14064]
[1693855780990,5.79076892,1628.5,1628.4,6.14064]
[1693855789897,5.79076892,1628.5,1628.4,6.27978651]
[1693855800207,5.79076892,1628.5,1628.4,0.13914651]
[1693855800708,11.93138892,1628.5,1628.4,0.13914651]
[1693855801075,18.07200892,1628.5,1628.4,0.13914651]
[1693855801278,11.93138892,1628.5,1628.4,0.13914651]
[1693855801816,9.7825677,1628.5,1628.4,0.13914651]
[1693855802110,2.009905,1628.3,1628.2,6.14139]
[1693855802808,2.009905,1628.3,1628.2,6.25710342]
[1693855805488,2.009905,1628.3,1628.2,6.14139]
[1693855806419,2.009905,1628.3,1628.2,6.25593892]
[1693855807614,2.009905,1628.3,1628.2,19.8091566]
[1693855808188,2.009905,1628.3,1628.2,19.16503281]
[1693855810304,2.009905,1628.3,1628.2,18.53943892]
[1693855810903,2.009905,1628.3,1628.2,19.18356271]
[1693855811117,2.009905,1628.3,1628.2,18.53943892]
[1693855812424,2.009905,1628.3,1628.2,19.18356271]
[1693855816715,2.009905,1628.3,1628.2,23.21676265]
[1693855816920,2.009905,1628.3,1628.2,25.63722795]
[1693855817121,0.84055488,1628.5,1628.2,25.63722795]
[1693855817320,0.84055488,1628.5,1628.3,0.75857733]
[1693855817523,0.84055488,1628.5,1628.4,0.11453485]
[1693855819346,0.84055488,1628.5,1628.4,18.53750485]
[1693855823537,0.84055488,1628.5,1628.4,21.09969433]
[1693855823739,0.84055488,1628.5,1628.4,21.42184456]
[1693855824472,0.84055488,1628.5,1628.4,22.06605165]
[1693855824702,0.84055488,1628.5,1628.4,22.06605085]
[1693855824830,0.84055488,1628.5,1628.4,22.06605167]
[1693855825234,0.84055488,1628.5,1628.4,21.42184456]
[1693855825531,0.84055488,1628.5,1628.4,22.06598583]
[1693855827542,0.84055488,1628.5,1628.4,21.09980015]
[1693855840786,0.84055488,1628.5,1628.4,21.58393838]
[1693855859568,0.84055488,1628.5,1628.4,22.55012406]
[1693855860504,0.84055488,1628.5,1628.4,21.90598279]
[1693855861103,0.84055488,1628.5,1628.4,22.55011501]
[1693855861503,0.84055488,1628.5,1628.4,21.90598279]
[1693855862511,0.84055488,1628.5,1628.4,19.98782876]
[1693855867485,0.84055488,1628.5,1628.4,21.27500698]
[1693855869228,2.0941,1628.7,1628.4,21.27500698]
[1693855869395,2.0941,1628.7,1628.5,1.61092318]
[1693855874332,2.0941,1628.7,1628.6,18.42072]
[1693855874531,2.5414,1628.7,1628.6,18.42072]
[1693855883807,3.36647239,1628.7,1628.6,18.42072]
[1693855896653,3.36647239,1628.7,1628.6,6.14024]
[1693855896825,3.36647239,1628.7,1628.5,0.6447375]
[1693855897638,5.51502979,1628.7,1628.5,0.6447375]
[1693855897815,0.55150298,1628.6,1628.5,0.6447375]
[1693855898215,3.66174935,1628.6,1628.5,0.6447375]
[1693855899855,3.66174935,1628.6,1628.4,6.7857275]
[1693855900159,3.66174935,1628.6,1628.5,6.14025]
[1693855908260,3.66174935,1628.6,1628.5,12.28062]
[1693855914272,3.66174935,1628.6,1628.5,18.42124]
[1693855915570,3.11024637,1628.6,1628.5,18.42124]
[1693856001176,0.82314637,1628.6,1628.5,18.42124]
[1693856001476,0.82314637,1628.6,1628.5,19.0659775]
[1693856031315,3.10384637,1628.6,1628.5,19.0659775]
[1693856044544,3.10384637,1628.6,1628.4,0.6447375]
[1693856044742,0.31038464,1628.5,1628.3,0.6447375]
[1693856045058,12.28198,1628.4,1628.3,0.6447375]
[1693856045205,14.55668,1628.4,1628.2,1.61092318]
[1693856045412,14.55668,1628.4,1628.2,0.6447375]
[1693856045592,10.58018568,1628.4,1628.2,0.6447375]
[1693856045952,12.72913883,1628.4,1628.2,0.6447375]
[1693856046095,6.58814883,1628.4,1628.2,0.6447375]
[1693856047023,0.63705586,1628.3,1628.2,0.6447375]
[1693856047702,0.63705586,1628.3,1628.1,2.21992535]
[1693856049240,0.63705586,1628.3,1628.2,12.28342]
[1693856058477,2.77175586,1628.3,1628.2,12.28342]
[1693856061277,2.77175586,1628.3,1628.2,18.42517]
[1693856074892,0.63705586,1628.3,1628.2,18.42517]
[1693856078218,0.63705586,1628.3,1628.2,19.0699075]
[1693856085727,0.63705586,1628.3,1628.2,20.03609318]
[1693856087232,0.63705586,1628.3,1628.2,26.55297752]
[1693856087408,0.63705586,1628.3,1628.2,25.58679184]
[1693856087722,0.63705586,1628.3,1628.2,26.5532153]
[1693856087927,0.63705586,1628.3,1628.2,25.58679184]
[1693856096537,0.63705586,1628.3,1628.2,26.55308832]
[1693856104744,0.63705586,1628.3,1628.2,25.2659101]
[1693856108437,2.79445586,1628.3,1628.2,25.2659101]
[1693856115335,2.1574,1628.3,1628.2,25.2659101]
[1693856115769,2.74809904,1628.3,1628.2,25.2659101]
[1693856116584,2.74809904,1628.3,1628.2,26.55308832]
[1693856121874,2.74809904,1628.3,1628.2,25.58679184]
[1693856122169,0.59069904,1628.3,1628.2,23.10253192]
[1693856122348,2.2326,1628.5,1628.2,23.10253192]
[1693856122547,2.2326,1628.5,1628.4,0.64449038]
[1693856126274,2.2326,1628.5,1628.4,19.06746038]
[1693856132364,0.00583801,1628.5,1628.4,19.06746038]
[1693856136021,0.00583801,1628.5,1628.4,20.03419595]
[1693856136812,0.98559294,1628.5,1628.4,20.03419595]
[1693856140219,0.98559294,1628.5,1628.4,1.61122595]
[1693856140520,3.14309294,1628.5,1628.4,1.61122595]
[1693856142217,3.14309294,1628.5,1628.4,20.03419595]
[1693856148438,3.14309294,1628.5,1628.4,19.06746038]
[1693856148602,3.14309294,1628.5,1628.4,20.03419595]
[1693856148802,3.14309294,1628.5,1628.4,19.06746038]
[1693856157544,3.67227305,1628.5,1628.4,12.92647038]
[1693856158736,3.67227305,1628.5,1628.4,12.28198]
[1693856161227,3.14309294,1628.5,1628.4,12.92647038]
[1693856162163,3.14309294,1628.5,1628.4,19.06746038]
[1693856162865,3.14309294,1628.5,1628.4,22.06746038]
[1693856164061,3.14309294,1628.5,1628.4,21.42297]
[1693856164267,3.14309294,1628.5,1628.4,22.06746038]
[1693856173420,3.67227305,1628.5,1628.4,22.06746038]
[1693856182326,3.14309294,1628.5,1628.4,22.06746038]
[1693856204372,0.98559294,1628.5,1628.4,23.03419595]
[1693856206066,0.98559294,1628.5,1628.4,23.03448278]
[1693856208335,0.98559294,1628.5,1628.4,26.10149704]
[1693856208737,0.98559294,1628.5,1628.4,25.45671983]
[1693856208933,0.98559294,1628.5,1628.4,28.74539189]
[1693856210389,0.98559294,1628.5,1628.4,30.00322154]
[1693856210557,0.64285934,1629.1,1628.4,30.39179261]
[1693856210754,2.14829364,1628.9,1628.8,0.64457766]
[1693856211161,2.14829364,1628.9,1628.8,3.71159192]
[1693856211358,2.15347896,1628.9,1628.8,4.17943776]
[1693856211683,0.00518532,1628.9,1628.8,4.5017266]
[1693856212075,0.84240002,1628.9,1628.8,5.14541279]
[1693856212893,0.84240002,1628.9,1628.8,4.17854629]
[1693856214185,0.84240002,1628.9,1628.8,22.59698629]
[1693856214977,0.84240002,1628.9,1628.8,21.9533001]
[1693856215475,0.84240002,1628.9,1628.8,22.59698629]
[1693856215871,0.84240002,1628.9,1628.8,21.9533001]
[1693856218076,0.00518532,1628.9,1628.8,21.9533001]
[1693856218275,6.43309813,1629.2,1628.8,21.9533001]
[1693856218547,6.43309813,1629.2,1628.9,5.26234427]
[1693856218687,0.84030286,1629.1,1628.9,5.26234427]
[1693856218887,0.84030286,1629.1,1628.9,3.06701426]
[1693856219311,0.00520381,1629.0,1628.9,3.06701426]
[1693856222320,0.00520381,1629.0,1628.9,21.48406426]
[1693856226801,0.84532046,1629.0,1628.9,21.48406426]
[1693856229425,0.84532046,1629.0,1628.9,24.48406426]
[1693856229616,0.84532046,1629.0,1628.9,27.59320327]
[1693856229851,0.84532046,1629.0,1628.9,24.48406426]
[1693856253880,0.84532046,1629.0,1628.9,25.12775045]
[1693856255851,0.84532046,1629.0,1628.9,25.45093076]
[1693856257875,0.79532046,1629.0,1628.9,25.45093076]
[1693856258309,0.80032412,1629.0,1628.9,25.45093076]
[1693856261414,0.80032412,1629.0,1628.9,28.94681637]
[1693856271201,0.80032412,1629.0,1628.9,25.45093076]
[1693856304888,0.80032412,1629.0,1628.9,26.74008609]
[1693856305183,0.80032412,1629.0,1628.9,25.45093076]
[1693856309781,0.80032412,1629.0,1628.9,26.74008609]
[1693856313063,0.80032412,1629.0,1628.9,25.77321959]
[1693856313246,0.80032412,1629.0,1628.9,29.37241855]
[1693856313588,4.35379813,1629.2,1628.9,29.37241855]
[1693856313793,4.35379813,1629.2,1629.1,0.64457465]
[1693856314459,4.35853889,1629.2,1629.1,0.64457465]
[1693856316903,5.10640514,1629.2,1629.1,0.64457465]
[1693856317412,5.10640514,1629.2,1629.1,18.41505]
[1693856317608,5.10640514,1629.2,1629.1,20.41769866]
[1693856321379,2.90050514,1629.2,1629.1,20.41769866]
[1693856321980,5.16050514,1629.2,1629.1,20.41769866]
[1693856323495,5.16050514,1629.2,1629.1,18.41505]
[1693856340215,5.16050514,1629.2,1629.1,19.05962465]
[1693856378978,5.16050514,1629.2,1629.1,20.02648663]
[1693856379138,5.16050514,1629.2,1629.1,19.05962465]
[1693856379337,5.16050514,1629.2,1629.1,20.02648663]
[1693856380281,5.16050514,1629.2,1629.1,19.05962465]
[1693856382335,5.16050514,1629.2,1629.1,20.02648663]
[1693856385173,5.16050514,1629.2,1629.1,19.05962465]
[1693856390205,5.16050514,1629.2,1629.1,20.02648663]
[1693856408712,2.90050514,1629.2,1629.1,24.89049044]
[1693856408937,2.90050514,1629.2,1629.1,25.21278379]
[1693856409071,2.90050514,1629.2,1629.1,25.53507262]
[1693856409072,2.15263889,1629.2,1629.1,25.53507262]
[1693856409271,2.15263889,1629.2,1629.1,26.82370547]
[1693856409587,2.289,1629.4,1629.1,26.82370547]
[1693856409900,4.43663453,1629.4,1629.3,0.64431311]
[1693856410499,4.44120773,1629.4,1629.3,0.64431311]
[1693856411915,2.15220773,1629.4,1629.3,3.71132737]
[1693856412071,0.0045732,1629.4,1629.3,3.71132737]
[1693856412273,0.0045732,1629.4,1629.3,4.67779704]
[1693856412500,5.35522404,1629.6,1629.3,5.27444003]
[1693856412731,4.43480924,1629.6,1629.4,3.71132737]
[1693856413017,5.35522404,1629.6,1629.4,3.71132737]
[1693856413171,5.35522404,1629.6,1629.4,3.06701426]
[1693856413378,0.00440424,1629.5,1629.4,3.71132737]
[1693856413575,0.00440424,1629.5,1629.4,4.85253137]
[1693856415610,2.3508,1629.7,1629.4,4.85253137]
[1693856416475,0.00441208,1629.6,1629.4,4.85253137]
[1693856417477,4.5804,1629.7,1629.4,4.85253137]
[1693856418278,4.5804,1629.7,1629.4,4.20821826]
[1693856418509,2.14710754,1629.8,1629.5,0.42082183]
[1693856418811,2.14710754,1629.8,1629.6,3.06701426]
[1693856419370,4.29320754,1629.8,1629.6,3.06701426]
[1693856421401,0.00441991,1629.7,1629.6,3.06701426]
[1693856421991,0.67637008,1629.7,1629.6,3.06701426]
[1693856422187,0.67637008,1629.7,1629.6,3.41579787]
[1693856424204,0.67637008,1629.7,1629.6,21.82520787]
[1693856426831,0.67637008,1629.7,1629.6,23.82520787]
[1693856427235,0.00441991,1629.7,1629.6,26.82520787]
[1693856427541,2.2768,1630.0,1629.6,26.82520787]
[1693856427733,2.2768,1630.0,1629.7,2.68252079]
[1693856427933,0.67244309,1629.9,1629.8,3.06701426]
[1693856428537,0.67668813,1629.9,1629.8,3.06701426]
[1693856430208,2.24771328,1630.1,1629.8,6.67779704]
[1693856430413,2.24771328,1630.1,1630.0,2.0]
[1693856430649,2.24771328,1630.1,1630.0,5.06701426]
[1693856430847,2.24771328,1630.1,1630.0,8.06701426]
[1693856430848,0.101,1630.1,1630.0,8.06701426]
[1693856431017,0.70784653,1630.1,1630.0,8.06701426]
[1693856431557,0.101,1630.1,1630.0,32.60685426]
[1693856431745,0.101,1630.1,1630.0,35.93431766]
[1693856432154,0.70784653,1630.1,1630.0,35.93431766]
[1693856433418,0.71385606,1630.1,1630.0,35.93431766]
[1693856433854,0.71385606,1630.1,1630.0,39.03431766]
[1693856437724,0.10700953,1630.1,1630.0,39.03431766]
[1693856438374,2.2705,1630.1,1630.0,39.03431766]
[1693856439055,2.2705,1630.1,1630.0,37.03431766]
[1693856440974,2.2705,1630.1,1630.0,39.03431766]
[1693856452243,2.2705,1630.1,1630.0,37.03431766]
[1693856452684,2.2705,1630.1,1630.0,39.03431766]
[1693856459572,2.2705,1630.1,1630.0,37.03431766]
[1693856459770,2.2705,1630.1,1630.0,35.70685426]
[1693856460179,2.2705,1630.1,1630.0,33.70685426]
[1693856460394,2.2705,1630.1,1630.0,35.70685426]
[1693856461805,0.101,1630.1,1630.0,35.70685426]
[1693856469166,0.101,1630.1,1630.0,36.35116737]
[1693856469325,0.101,1630.1,1630.0,40.16770221]
[1693856469515,0.101,1630.1,1630.0,40.81201532]
[1693856472248,0.101,1630.1,1630.0,41.77848499]
[1693856473448,0.101,1630.1,1630.0,41.13417188]
[1693856476257,0.101,1630.1,1630.0,41.45633506]
[1693856479770,0.77554591,1630.1,1630.0,41.45633506]
[1693856479971,2.98004591,1630.1,1630.0,41.45633506]
[1693856484557,2.3055,1630.1,1630.0,41.45633506]
[1693856496434,2.3055,1630.1,1630.0,36.99548711]
[1693856496752,2.3055,1630.1,1630.0,22.47126309]
[1693856497027,2.3055,1630.1,1630.0,23.11554859]
[1693856497327,2.97992623,1630.1,1630.0,23.11554859]
[1693856497537,2.98572045,1630.1,1630.0,23.11554859]
[1693856497703,2.98572045,1630.1,1630.0,22.1491655]
[1693856498201,2.98572045,1630.1,1630.0,23.11554859]
[1693856499504,2.98572045,1630.1,1630.0,22.1491655]
[1693856507624,2.98572045,1630.1,1630.0,28.51216148]
[1693856507625,0.78122045,1630.1,1630.0,28.51216148]
[1693856508127,0.10679422,1630.1,1630.0,28.51216148]
[1693856508523,0.101,1630.1,1630.0,28.51216148]
[1693856511963,0.77531186,1630.1,1630.0,28.51216148]
[1693856512364,0.78110267,1630.1,1630.0,28.51216148]
[1693856514900,0.10679081,1630.1,1630.0,28.51216148]
[1693856515393,0.101,1630.1,1630.0,28.51216148]
[1693856515608,0.101,1630.1,1630.0,29.80079433]
[1693856515950,0.101,1630.1,1630.0,28.83441124]
[1693856519607,0.101,1630.1,1630.0,29.31824815]
[1693856520098,0.77538186,1630.1,1630.0,29.31824815]
[1693856520254,0.77538186,1630.1,1630.0,31.31824815]
[1693856520452,0.78117267,1630.1,1630.0,35.92825638]
[1693856520699,0.10679081,1630.1,1630.0,35.92825638]
[1693856521366,0.101,1630.1,1630.0,35.92825638]
[1693856522103,0.101,1630.1,1630.0,34.31824815]
[1693856522468,0.101,1630.1,1630.0,35.92825638]
[1693856522664,0.101,1630.1,1630.0,34.31824815]
[1693856523909,0.101,1630.1,1630.0,35.92825638]
[1693856524971,0.101,1630.2,1630.0,36.40825638]
[1693856525209,0.101,1630.2,1630.1,11.15317456]
[1693856526811,0.101,1630.3,1630.2,2.0]
[1693856527044,0.101,1630.3,1630.2,6.51220858]
[1693856527355,2.24739375,1630.4,1630.2,10.15702249]
[1693856527635,0.101,1630.5,1630.3,4.5118851]
[1693856527941,0.101,1630.5,1630.4,1.09442148]
[1693856528107,0.101,1630.5,1630.4,4.64143574]
[1693856528319,2.24705184,1630.6,1630.4,12.64143574]
[1693856528497,2.24705184,1630.6,1630.5,7.51144381]
[1693856528698,0.101,1630.6,1630.5,8.79793827]
[1693856528897,0.101,1630.6,1630.5,10.38385177]
[1693856529246,0.101,1630.6,1630.5,9.09735731]
[1693856530298,0.101,1630.7,1630.6,2.0]
[1693856530499,0.101,1630.7,1630.6,5.54701426]
[1693856530703,0.101,1630.7,1630.6,9.72097548]
[1693856531637,0.101,1630.8,1630.6,9.72097548]
[1693856531944,0.101,1630.8,1630.7,3.54701426]
[1693856532325,0.83045087,1630.8,1630.7,3.54701426]
[1693856532654,0.83583956,1630.8,1630.7,3.54701426]
[1693856532853,0.83583956,1630.8,1630.7,4.51911181]
[1693856532995,0.83583956,1630.8,1630.7,22.91610181]
[1693856534328,0.10638869,1630.8,1630.7,22.91610181]
[1693856534534,0.10638869,1630.8,1630.7,26.01610181]
[1693856535059,0.10638869,1630.8,1630.7,25.53610181]
[1693856535237,0.10638869,1630.8,1630.7,24.56400426]
[1693856535554,0.83746412,1630.8,1630.7,24.56400426]
[1693856539144,0.83746412,1630.8,1630.7,28.04400426]
[1693856539329,2.58213716,1630.9,1630.8,2.0]
[1693856539544,2.1002,1630.9,1630.8,8.54701426]
[1693856539742,2.1002,1630.9,1630.8,11.85141469]
[1693856539948,2.75870957,1630.9,1630.8,11.85141469]
[1693856540649,2.76348039,1630.9,1630.8,11.85141469]
[1693856544920,2.10497082,1630.9,1630.8,11.85141469]
[1693856545264,2.76362098,1630.9,1630.8,11.85141469]
[1693856545825,2.10497082,1630.9,1630.8,11.85141469]
[1693856546653,2.1002,1630.9,1630.8,11.85141469]
[1693856551509,2.1002,1630.9,1630.8,12.34834505]
[1693856561471,2.1002,1630.9,1630.8,9.04394462]
[1693856561808,2.75923305,1630.9,1630.8,8.56394462]
[1693856562461,2.76402756,1630.9,1630.8,8.56394462]
[1693856563827,2.10499451,1630.9,1630.8,8.56394462]
[1693856564501,2.75923305,1630.9,1630.8,8.56394462]
[1693856565432,2.76402225,1630.9,1630.8,8.56394462]
[1693856566628,2.1002,1630.9,1630.8,8.56394462]
[1693856567320,2.75923305,1630.9,1630.8,8.56394462]
[1693856567515,2.76402756,1630.9,1630.8,8.56394462]
[1693856568047,2.10499451,1630.9,1630.8,8.56394462]
[1693856568399,2.1002,1630.9,1630.8,8.56394462]
[1693856568599,2.1002,1630.9,1630.8,11.95304749]
[1693856568935,2.75923305,1630.9,1630.8,11.95304749]
[1693856569616,2.76402756,1630.9,1630.8,11.95304749]
[1693856571009,2.76402756,1630.9,1630.8,12.59530238]
[1693856571205,2.76402756,1630.9,1630.8,12.91747704]
[1693856571721,2.76402756,1630.9,1630.8,13.55981172]
[1693856572111,2.76402756,1630.9,1630.8,12.91747704]
[1693856573236,2.76402756,1630.9,1630.8,13.23954195]
[1693856573642,2.76402756,1630.9,1630.8,14.20391877]
[1693856574250,2.76402756,1630.9,1630.8,13.23954195]
[1693856576748,2.10499451,1630.9,1630.8,13.23954195]
[1693856577351,0.00479451,1630.9,1630.8,13.23954195]
[1693856577520,2.2941,1631.0,1630.8,13.23954195]
[1693856577715,4.4827,1631.0,1630.9,4.67500629]
[1693856578221,5.14183279,1631.0,1630.9,7.67500629]
[1693856578534,5.14663512,1631.0,1630.9,7.67500629]
[1693856580169,5.14663512,1631.0,1630.9,7.03180948]
[1693856581269,5.14663512,1631.0,1630.9,7.67516364]
[1693856582334,5.14663512,1631.0,1630.9,19.93832364]
[1693856582534,5.14663512,1631.0,1630.9,19.29496948]
[1693856587277,5.14663512,1631.0,1630.9,19.93852508]
[1693856587573,5.14663512,1631.0,1630.9,19.93852363]
[1693856587872,5.14663512,1631.0,1630.9,19.29496948]
[1693856588388,5.14663512,1631.0,1630.9,19.93851944]
[1693856588871,5.14663512,1631.0,1630.9,19.29496948]
[1693856590570,5.12e-06,1631.0,1630.9,21.60280891]
[1693856590952,0.52624221,1631.0,1630.9,22.88930337]
[1693856591158,5.12e-06,1631.0,1630.9,22.88930337]
[1693856591356,5.12e-06,1631.0,1630.9,21.60280891]
[1693856591545,2.2967,1631.1,1630.9,21.60280891]
[1693856591746,2.2967,1631.1,1631.0,2.80363068]
[1693856591958,2.2967,1631.1,1631.0,5.87064494]
[1693856592160,2.82289786,1631.1,1631.0,5.87064494]
[1693856592480,2.82753035,1631.1,1631.0,5.87064494]
[1693856599808,2.82753035,1631.1,1631.0,3.71036405]
[1693856602315,2.82753035,1631.1,1631.0,0.64334979]
[1693856603212,2.82753035,1631.1,1631.0,6.1312]
[1693856604413,2.82753035,1631.1,1631.0,6.77454979]
[1693856606809,0.63183035,1631.1,1631.0,10.16300948]
[1693856606991,0.63183035,1631.1,1631.0,12.22111787]
[1693856607186,0.10563249,1631.1,1631.0,12.22111787]
[1693856607387,0.101,1631.1,1631.0,13.50761233]
[1693856609719,0.101,1631.1,1631.0,12.22111787]
[1693856612328,0.62816268,1631.1,1631.0,12.22111787]
[1693856612529,0.10563249,1631.1,1631.0,12.22111787]
[1693856612690,0.10563249,1631.1,1631.0,15.50761233]
[1693856612896,0.91946007,1631.3,1631.2,2.0]
[1693856613097,0.91946007,1631.3,1631.2,6.03121704]
[1693856613398,2.14938564,1631.3,1631.2,9.03121704]
[1693856613711,2.62516953,1631.3,1631.2,9.67391547]
[1693856614100,2.62516953,1631.3,1631.2,8.70971269]
[1693856614301,2.62516953,1631.3,1631.2,9.67391547]
[1693856614604,2.62516953,1631.3,1631.2,8.70971269]
[1693856614809,2.62516953,1631.3,1631.2,9.80566461]
[1693856615431,4.88416953,1631.3,1631.2,9.80566461]
[1693856616206,4.88416953,1631.3,1631.2,8.70971269]
[1693856616629,4.88416953,1631.3,1631.2,6.70971269]
[1693856616846,2.62516953,1631.3,1631.2,3.06701426]
[1693856617125,4.88416953,1631.3,1631.2,3.70971269]
[1693856617333,2.73906793,1631.3,1631.2,3.70971269]
[1693856618217,2.73906793,1631.3,1631.2,6.70971269]
[1693856620459,2.73906793,1631.3,1631.2,6.06701426]
[1693856621314,2.73906793,1631.3,1631.2,12.19746426]
[1693856622622,2.73906793,1631.3,1631.2,12.84016269]